[Event "Fall GM-A Norm Invitational 2022"]
[Site "Charlotte"]
[Date "2022.11.19"]
[Round "3"]
[White "Kaliksteyn, Alexander"]
[Black "Tiglon, Bryce"]
[Result "*"]
[ECO "A48"]
[WhiteElo "2389"]
[BlackElo "2475"]
[Annotator "TA"]
[PlyCount "33"]
[EventDate "2022.11.18"]
[EventType "tourn"]
[EventCountry "USA"]
[SourceTitle "playchess.com"]
[Source "ChessBase"]
[SourceQuality "1"]
[TimeControl "5400+30"]

{[%evp 9,20,1,16,0,13,0,8,11,22,0,0,0,11]} 1. d4 {[%emt 0:00:03]} Nf6 {[%emt 0:15:20]} 2. Nf3 {[%emt 0:00:41]} g6 {[%emt 0:00:08]} 3. Bf4 {[%emt 0:00:06]} Bg7 {[%emt 0:00:07]} 4. e3 {[%emt 0:00:37]} d6 {[%emt 0:00:05]} 5. h3 {[%emt 0:00:34]} c5 {[%emt 0:00:26] The position is equal.} 6. Be2 {[%emt 0:02:51] A48: 1 d4 Nf6 2 Nf3 g6: Torre, London and Colle Systems.} Nc6 {[%emt 0:00:41]} 7. c3 {[%emt 0:18:35]} cxd4 {[%emt 0:00:16]} 8. exd4 {[%emt 0:00:31]} Nd5 {[%emt 0:01:35]} 9. Bh2 {[%emt 0:05:48]} O-O {[%emt 0:00:07]} 10. O-O {[%emt 0:00:27]} e5 {[%emt 0:00:04] [#] An uneventful encounter.  Weighted Error Value: White=0.08 (flawless) /Black=0.06 (flawless)} {Predecessor:} 11. Na3 $146 exd4 12. Nc4 Nb6 13. Nxd6 dxc3 14. bxc3 Bxc3 15. Rc1 Bb4 16. Bb5 Qe7 17. Bxc6 {½-½ (47) Inarkiev,E (2690)-Wei,Y (2735) Magas 2018} *

[Event "Fall GM-A Norm Invitational 2022"]
[Site "Charlotte"]
[Date "2022.11.19"]
[Round "4"]
[White "Preotu, Razvan"]
[Black "Siddharth, Jagadeesh"]
[Result "1-0"]
[ECO "C42"]
[WhiteElo "2493"]
[BlackElo "2407"]
[Annotator "TA"]
[PlyCount "71"]
[EventDate "2022.11.18"]
[EventType "tourn"]
[EventCountry "USA"]
[SourceTitle "playchess.com"]
[Source "ChessBase"]
[SourceQuality "1"]
[TimeControl "5400+30"]

{[%evp 18,71,31,17,54,19,16,2,8,10,15,8,42,29,232,170,245,231,218,97,69,75,83,17,136,135,131,152,150,150,251,258,280,281,302,333,335,323,308,260,308,312,322,295,316,306,314,302,285,317,292,292,561,561,485,478]} 1. e4 {[%emt 0:01:38]} e5 {[%emt 0:00:21]} 2. Nf3 {[%emt 0:00:16]} Nf6 {[%emt 0:00:44]} 3. Nxe5 {[%emt 0:00:18]} d6 {[%emt 0:00:12]} 4. Nf3 {[%emt 0:00:07]} Nxe4 {[%emt 0:00:07]} 5. d4 {[%emt 0:00:12]} d5 {[%emt 0:00:06]} 6. Bd3 {[%emt 0:00:14]} Bd6 {[%emt 0:00:08]} 7. O-O {[%emt 0:00:22]} O-O {[%emt 0:00:08]} 8. c4 {[%emt 0:00:14]} c6 {[%emt 0:00:06]} 9. Re1 {[%emt 0:00:24]} Bf5 {[%emt 0:00:08]} 10. Qb3 $1 {[%emt 0:01:42] 10.Qb3 scores better than 10.Qc2.} Qd7 {[%emt 0:00:09] C42: Petroff Defence: 3 Nxe5 and unusual White 3rd moves.} 11. c5 {[%emt 0:00:40]} Bc7 {[%emt 0:00:07]} 12. Nbd2 {[%emt 0:00:24][%cal Rd2e4,Bb1d2,Bd2f1,Bf1g3][%mdl 32]} Be6 {[%emt 0:00:10] The position is equal.} 13. Nf1 {[%emt 0:01:26] [#]} h6 $146 {[%emt 0:00:38] Inhibits Ng5.} ({Predecessor:} 13... Na6 14. Ng3 Ba5 15. Re2 Rae8 16. Ne5 Qc8 17. Qa4 Bc7 18. Bxe4 dxe4 19. Nxe4 Bd5 {½-½ (81) Aronian,L (2782)-Erigaisi,A (2627) Kolkata 2021}) 14. Ng3 {[%emt 0:01:15]} f5 {[%emt 0:00:39]} 15. Bd2 {[%emt 0:04:05]} (15. Qxb7 $2 Bxg3 16. Qxd7 Bxf2+ 17. Kf1 Nxd7 $19) 15... f4 $2 {[%emt 0:10:13]} (15... Qc8 $11 {and Black has nothing to worry.}) 16. Nxe4 $18 {[%emt 0:18:17]} dxe4 {[%emt 0:00:20]} 17. Qxb7 {[%emt 0:00:08]} exf3 {[%emt 0:11:53]} 18. Rxe6 {[%emt 0:00:30]} (18. Qxa8 $18 {[%cal Oe1e6] Strongly threatening Rxe6!} fxg2 19. Rxe6 $1 (19. Kxg2 Bh3+ 20. Kh1 Qg4) (19. Qxa7 f3 $11) 19... Qxe6 20. Qb7 (20. Qxa7 Qd7 $16) (20. Kxg2 $2 Qg4+ 21. Kf1 Qh3+ 22. Ke1 Qxd3 $19)) 18... Qxe6 $16 {[%emt 0:01:06]} 19. Qxc7 {[%emt 0:00:13] Black must now prevent Re1.} Nd7 {[%emt 0:12:31]} 20. Bxf4 {[%emt 0:36:38]} (20. gxf3 $16 {Re1 is the strong threat.} Nf6 21. Qxf4 (21. Bxf4 $2 Nd5 $19)) 20... Rac8 {[%emt 0:08:19] Black is now going downhill.} (20... Qg4 $11 {remains equal.} 21. Bg3 (21. Qxc6 $2 Qxg2#) (21. g3 Rac8 $15) 21... Qxd4) 21. Qd6 {[%emt 0:00:26] Really sharp!} Qf7 {[%emt 0:00:10]} 22. Bg3 {[%emt 0:03:02] White is more active.} (22. gxf3 $6 Qxf4 23. Qxd7 Qxf3 24. Qe6+ Kh8 $11) (22. g3 Nf6 $16) 22... Nf6 {[%emt 0:06:40]} 23. Bf5 {[%emt 0:08:01]} (23. gxf3 Rcd8 24. Qxc6 Rxd4 $16) 23... Ne8 {[%emt 0:05:59]} (23... Rce8 $16 {was worth a try.}) 24. Qe6 $18 {[%emt 0:00:08] Hoping for Qxf7+.} (24. Bxc8 $2 Nxd6 25. Bg4 Nf5 26. Bxf3 Nxd4 $19) 24... Rd8 {[%emt 0:00:05]} 25. Be5 {[%emt 0:09:40]} (25. gxf3 Rxd4 26. Qe3 (26. Be5 Rd5 $11) 26... Qxf5 $16) 25... Qxe6 {[%emt 0:01:34]} 26. Bxe6+ {[%emt 0:00:02] This pair of bishops is nice.} Kh8 {[%emt 0:00:17]} 27. b4 {[%emt 0:00:26]} Nf6 {[%emt 0:02:57]} 28. a4 {[%emt 0:00:05] Threatens to win with b5.} (28. gxf3 $6 Nd5 $18) 28... Rfe8 {[%emt 0:02:05] Against b5} 29. Bf5 {[%emt 0:00:26] And now b5 would win.} Nd5 {[%emt 0:02:22]} 30. b5 {[%emt 0:00:43]} cxb5 {[%emt 0:00:01]} 31. axb5 {[%emt 0:00:18]} ({Not} 31. gxf3 Nc3 32. axb5 Nxb5 $18) 31... Nc3 {[%emt 0:00:08]} 32. gxf3 {[%emt 0:02:04]} Nxb5 {[%emt 0:00:45]} 33. Ra4 {[%emt 0:02:33]} Rd5 {[%emt 0:09:55][%cal Ob5d4] [#]} 34. c6 $1 {[%emt 0:02:32]} Nxd4 $2 {[%emt 0:01:31]} (34... Rexe5 35. dxe5 Rxe5) 35. Rxd4 {[%emt 0:00:34]} ({Weaker is} 35. Bxd4 Rxf5 36. Rxa7 Re1+ 37. Kg2 Rg5+ 38. Kh3 Reg1 $11) 35... Rdxe5 {[%emt 0:00:17] [#]} 36. Re4 $1 {[%emt 0:00:37] Weighted Error Value: White=0.10 (very precise) /Black=0.38} 1-0

[Event "Fall GM-A Norm Invitational 2022"]
[Site "Charlotte"]
[Date "2022.11.19"]
[Round "4"]
[White "Tiglon, Bryce"]
[Black "Fus, Jakub"]
[Result "1/2-1/2"]
[ECO "C11"]
[WhiteElo "2475"]
[BlackElo "2427"]
[Annotator "TA"]
[PlyCount "56"]
[EventDate "2022.11.18"]
[EventType "tourn"]
[EventCountry "USA"]
[SourceTitle "playchess.com"]
[Source "ChessBase"]
[SourceQuality "1"]
[TimeControl "5400+30"]

{[%evp 20,43,10,16,24,15,15,34,17,15,18,3,22,31,20,0,12,12,13,16,21,22,11,17,14,13]} 1. e4 {[%emt 0:04:25]} e6 {[%emt 0:00:31]} 2. d4 {[%emt 0:00:25]} d5 {[%emt 0:00:12]} 3. Nc3 {[%emt 0:00:41]} Nf6 {[%emt 0:00:27]} 4. e5 {[%emt 0:00:21]} Nfd7 {[%emt 0:00:09]} 5. f4 {[%emt 0:00:03]} c5 {[%emt 0:00:27]} 6. Nf3 {[%emt 0:00:06]} Nc6 {[%emt 0:01:21]} 7. Be3 {[%emt 0:00:06]} cxd4 {[%emt 0:00:27]} 8. Nxd4 {[%emt 0:00:05]} Qb6 {[%emt 0:00:12]} 9. Qd2 {[%emt 0:01:15]} Qxb2 {[%emt 0:00:28]} 10. Rb1 {[%emt 0:00:05]} Qa3 {[%emt 0:00:10]} 11. Bb5 {[%emt 0:00:03] [#] Hoping for Rb3.} Nxd4 {[%emt 0:00:20] C11: French: Classical System: 4 e5 and 4 Bg5 dxe4.} (11... Ndb8 {is more complex.} 12. O-O Bb4 13. Rb3 Qa5) 12. Bxd4 {[%emt 0:00:05][%cal Of4f5] Threatening f5!} ({But not} 12. Qxd4 a6 13. Bxd7+ Bxd7 14. Rxb7 Rc8 $17) 12... a6 {[%emt 0:00:22] Prevents f5.} 13. Bxd7+ {[%emt 0:00:09]} Bxd7 {[%emt 0:00:08] White is slightly better.} 14. Rb3 {[%emt 0:00:03] Inhibits b5.} Qe7 {[%emt 0:00:15]} 15. Rxb7 {[%emt 0:00:05]} Rc8 {[%emt 0:01:24] 15...Qh4+ gains popularity.} 16. O-O {[%emt 0:00:09][%cal Of4f5]} Qd8 {[%emt 0:00:22] Prevents f5.} 17. Qf2 {[%emt 0:01:56] The position is equal.} Rxc3 {[%emt 0:21:18]} 18. Bxc3 {[%emt 0:00:17]} Qc8 {[%emt 0:00:05][%csl LRb7,LRc3]} 19. Rb3 {[%emt 0:00:09] Threatens to win with Bd4.} Ba4 {[%emt 0:00:37] [#]} 20. Bd4 $1 {[%emt 0:00:07] Black must now prevent Rc3.} Bxb3 {[%emt 0:00:17]} 21. axb3 {[%emt 0:00:01]} Be7 {[%emt 0:02:08]} 22. c3 {[%emt 0:04:16] [#] An interesting draw.   Weighted Error Value: White=0.03 (flawless) /Black=0.05 (flawless)} {Predecessor:} O-O $146 23. b4 g6 24. Qe2 Qb7 25. g4 Ra8 26. f5 a5 27. bxa5 Rxa5 28. fxe6 fxe6 {½-½ (46) Chigaev,M (2550)-Popov,I (2596) St Petersburg 2016} 1/2-1/2

[Event "Fall GM-A Norm Invitational 2022"]
[Site "Charlotte"]
[Date "2022.11.19"]
[Round "4"]
[White "Mardov, Dimitar"]
[Black "Kaliksteyn, Alexander"]
[Result "1/2-1/2"]
[ECO "B90"]
[WhiteElo "2432"]
[BlackElo "2389"]
[Annotator "TA"]
[PlyCount "57"]
[EventDate "2022.11.18"]
[EventType "tourn"]
[EventCountry "USA"]
[SourceTitle "playchess.com"]
[Source "ChessBase"]
[SourceQuality "1"]
[TimeControl "5400+30"]

{[%evp 9,57,14,20,8,16,2,21,18,25,9,11,11,13,13,22,17,11,0,3,7,15,3,16,20,12,0,0,0,0,0,0,0,0,0,0,-22,-17,-24,-34,-71,0,0,0,0,0,0,0,0,0,0]} 1. e4 {[%emt 0:00:03]} c5 {[%emt 0:00:15]} 2. Nf3 {[%emt 0:00:04]} d6 {[%emt 0:00:10]} 3. d4 {[%emt 0:00:09]} cxd4 {[%emt 0:00:06]} 4. Nxd4 {[%emt 0:00:05]} Nf6 {[%emt 0:00:06]} 5. Nc3 {[%emt 0:00:04]} a6 {[%emt 0:00:04]} 6. h4 {[%emt 0:01:01] B90: Sicilian Najdorf: Unusual White 6th moves, 6 Be3 Ng4 and 6 Be3 e5.} e5 {[%emt 0:00:52]} 7. Nb3 {[%emt 0:00:43]} Be6 {[%emt 0:00:35]} 8. f4 {[%emt 0:01:51]} g6 {[%emt 0:00:40] Inhibits f5.} 9. Be2 {[%emt 0:02:51]} Nc6 {[%emt 0:00:55]} 10. g4 {[%emt 0:08:54][%cal Bg2g4,Bg4g5][%mdl 32]} (10. fxe5 {simplifies} dxe5 11. Qxd8+ Rxd8 12. O-O) 10... exf4 {[%emt 0:00:37]} 11. g5 {[%emt 0:05:37] [#] Against d5} f3 $146 {[%emt 0:00:27]} ({Predecessor:} 11... Nd7 12. Bxf4 Nce5 13. Qd2 b5 14. O-O-O b4 15. Nd5 Bxd5 16. Qxd5 Be7 17. Kb1 a5 {1-0 (45) Rakotomaharo,F (2429)-Perez Ponsa,F (2554) Chess.com INT 2021}) 12. Bxf3 {[%emt 0:02:13]} Nd7 {[%emt 0:00:06]} 13. Bf4 {[%emt 0:04:47]} h6 {[%emt 0:06:17]} 14. Qd2 {[%emt 0:05:43][%cal Rg5h6]} ({Of course not} 14. Bxd6 hxg5 15. Bxf8 Kxf8 $17) 14... Nce5 {[%emt 0:03:14]} 15. Be2 {[%emt 0:02:49][%cal Rg5h6]} hxg5 {[%emt 0:01:24]} 16. Bxg5 {[%emt 0:00:54]} Be7 {[%emt 0:00:08]} 17. O-O-O {[%emt 0:01:18]} Bxg5 $1 {[%emt 0:02:19]} 18. hxg5 {[%emt 0:00:52]} Rxh1 {[%emt 0:00:49]} 19. Rxh1 {[%emt 0:00:17]} Qe7 {[%emt 0:01:58]} 20. Kb1 {[%emt 0:14:40]} O-O-O {[%emt 0:06:11]} 21. Na5 {[%emt 0:04:07]} Nb6 {[%emt 0:17:51]} 22. Nd5 {[%emt 0:01:48]} Bxd5 {[%emt 0:18:13]} 23. exd5 {[%emt 0:00:20]} Kb8 {[%emt 0:00:38]} 24. Rh3 {[%emt 0:03:09]} Rc8 {[%emt 0:08:24]} (24... Re8 $17) 25. Rb3 $11 {[%emt 0:10:53] The position is equal.} Nec4 {[%emt 0:02:26]} 26. Bxc4 {[%emt 0:01:40]} Nxc4 {[%emt 0:00:07]} 27. Nxc4 {[%emt 0:00:52]} Rxc4 {[%emt 0:00:05]} 28. a3 {[%emt 0:02:04]} Qe4 {[%emt 0:06:05]} 29. Rd3 {[%emt 0:02:19] Weighted Error Value: White=0.05 (flawless) /Black=0.04 (flawless)} 1/2-1/2

[Event "Fall GM-A Norm Invitational 2022"]
[Site "Charlotte"]
[Date "2022.11.19"]
[Round "4"]
[White "Mulyar, Michael"]
[Black "Stremavicius, Titas"]
[Result "1/2-1/2"]
[ECO "D37"]
[WhiteElo "2355"]
[BlackElo "2527"]
[Annotator "TA"]
[PlyCount "66"]
[EventDate "2022.11.18"]
[EventType "tourn"]
[EventCountry "USA"]
[SourceTitle "playchess.com"]
[Source "ChessBase"]
[SourceQuality "1"]
[TimeControl "5400+30"]

{[%evp 25,66,27,26,29,35,33,32,17,24,12,3,0,13,18,16,9,11,0,0,-2,0,0,0,0,0,0,0,0,0,0,0,0,0,0,0,0,0,0,0,0,0,0,0]} 1. d4 {[%emt 0:00:01]} Nf6 {[%emt 0:00:28]} 2. Nf3 {[%emt 0:00:27]} d5 {[%emt 0:00:20]} 3. c4 {[%emt 0:00:07]} e6 {[%emt 0:00:10]} 4. Nc3 {[%emt 0:00:16]} Nbd7 {[%emt 0:00:24]} 5. Bg5 {[%emt 0:01:32]} h6 {[%emt 0:00:18]} 6. Bh4 {[%emt 0:00:07]} Be7 {[%emt 0:00:09]} 7. e3 {[%emt 0:00:31]} O-O {[%emt 0:00:10]} 8. cxd5 {[%emt 0:03:09]} exd5 {[%emt 0:04:05]} 9. Bd3 {[%emt 0:00:30]} c6 {[%emt 0:00:20]} 10. Qc2 {[%emt 0:03:31]} Re8 {[%emt 0:00:13]} 11. O-O {[%emt 0:00:21]} Ne4 {[%emt 0:04:52]} 12. Bxe4 {[%emt 0:00:24]} Bxh4 {[%emt 0:00:33]} 13. Bh7+ {[%emt 0:00:12]} Kh8 {[%emt 0:00:16]} 14. Nxh4 {[%emt 0:00:08] D36: Queen's Gambit Declined: Exchange Variation: Main line (5 Bg5 c6 6 Qc2).} Qxh4 {[%emt 0:00:06]} 15. Bd3 {[%emt 0:00:18]} Qe7 {[%emt 0:06:53]} 16. Rae1 {[%emt 0:04:08] White is slightly better.} Nf6 {[%emt 0:00:29] [#]} 17. Na4 $146 {[%emt 0:10:39]} ({Predecessor:} 17. f3 Be6 18. a3 b6 19. Qf2 c5 20. g4 a6 21. h3 Kg8 22. Kh1 Ra7 23. Rg1 {½-½ (57) Girya,O (2395)-Galliamova,A (2421) Cheboksary 2022}) 17... Qd6 {[%emt 0:02:22] The position is equal.} 18. f3 {[%emt 0:04:12]} Be6 {[%emt 0:06:27]} 19. a3 {[%emt 0:01:26]} Nd7 {[%emt 0:07:30][%cal Bf6d7,Bd7b6,Bb6c8,Bc8d6][%mdl 32]} 20. Rc1 {[%emt 0:06:08]} Re7 {[%emt 0:00:53]} 21. Qf2 {[%emt 0:01:24]} f6 {[%emt 0:06:40]} 22. Rfe1 {[%emt 0:07:10]} Bg8 {[%emt 0:01:20]} 23. Qg3 {[%emt 0:09:23]} Qxg3 {[%emt 0:03:32]} 24. hxg3 {[%emt 0:00:02]} Nb6 {[%emt 0:01:11]} 25. b3 {[%emt 0:00:44]} Nc8 {[%emt 0:02:12]} 26. Kf2 {[%emt 0:06:48]} Nd6 {[%emt 0:00:37]} 27. g4 {[%emt 0:01:50]} Bh7 {[%emt 0:00:17]} 28. Nc5 {[%emt 0:02:00]} Bxd3 {[%emt 0:00:36]} 29. Nxd3 {[%emt 0:00:03]} Kg8 {[%emt 0:00:13]} 30. a4 {[%emt 0:00:27]} Rae8 {[%emt 0:00:43]} 31. Re2 {[%emt 0:00:46]} g5 {[%emt 0:03:04]} 32. Rcc2 {[%emt 0:05:07]} Kg7 {[%emt 0:03:37]} 33. Rc1 {[%emt 0:00:18]} Kg6 {Weighted Error Value: White=0.02 (flawless) /Black=0.01 (flawless)} 1/2-1/2

[Event "Fall GM-A Norm Invitational 2022"]
[Site "Charlotte"]
[Date "2022.11.20"]
[Round "6"]
[White "Tiglon, Bryce"]
[Black "Cordova, Emilio"]
[Result "1/2-1/2"]
[ECO "B41"]
[WhiteElo "2475"]
[BlackElo "2561"]
[Annotator "TA"]
[PlyCount "30"]
[EventDate "2022.11.18"]
[EventType "tourn"]
[EventCountry "USA"]
[SourceTitle "playchess.com"]
[Source "ChessBase"]
[SourceQuality "1"]
[TimeControl "5400+30"]

{[%evp 14,30,55,48,61,57,86,77,97,69,82,64,75,67,69,45,45,-11,64]} 1. e4 {[%emt 0:17:38]} c5 {[%emt 0:01:36]} 2. Nf3 {[%emt 0:00:03]} e6 {[%emt 0:00:47]} 3. d4 {[%emt 0:00:34]} cxd4 {[%emt 0:00:08]} 4. Nxd4 {[%emt 0:00:02]} a6 {[%emt 0:00:13]} 5. c4 {[%emt 0:00:21]} Nf6 {[%emt 0:00:29]} 6. Nc3 {[%emt 0:00:03]} Qc7 {[%emt 0:00:13]} 7. Be2 {[%emt 0:00:22]} b6 {[%emt 0:01:45]} 8. Be3 {[%emt 0:01:34]} Bb7 {[%emt 0:00:23] B41: Sicilian: Kan Variation: 5 c4.} 9. f3 {[%emt 0:00:25]} d6 {[%emt 0:01:06]} 10. Qd2 {[%emt 0:00:50] [#] White is more active.} h5 $146 {[%emt 0:01:11] White is better.} ({Predecessor:} 10... Nbd7 11. O-O Be7 12. a4 O-O 13. a5 bxa5 14. Nb3 Rab8 15. Nxa5 Ba8 16. Rfc1 Ne5 17. Na4 Nc6 18. Nxc6 Bxc6 19. b4 Nd7 20. c5 dxc5 21. Nxc5 Nxc5 22. Bxc5 {½-½ (39) Brkic,A (2600)-Jovanovic,D (2418) Austria 2019}) 11. O-O-O {[%emt 0:03:26]} Nbd7 {[%emt 0:01:00]} 12. Kb1 {[%emt 0:02:36]} Rc8 {[%emt 0:00:41]} 13. Rc1 {[%emt 0:07:17]} Be7 {[%emt 0:02:09]} 14. Nb3 {[%emt 0:10:26]} Qb8 {[%emt 0:01:49]} 15. Qe1 {[%emt 0:02:23]} (15. Rhd1 $14) 15... Kf8 {[%emt 0:01:14] Weighted Error Value: White=0.22 (precise) /Black=0.12 (very precise)} (15... O-O $11) 1/2-1/2

[Event "Fall GM-A Norm Invitational 2022"]
[Site "Charlotte"]
[Date "2022.11.20"]
[Round "6"]
[White "Mardov, Dimitar"]
[Black "Stremavicius, Titas"]
[Result "1/2-1/2"]
[ECO "B62"]
[WhiteElo "2432"]
[BlackElo "2527"]
[Annotator "TA"]
[PlyCount "97"]
[EventDate "2022.11.18"]
[EventType "tourn"]
[EventCountry "USA"]
[SourceTitle "playchess.com"]
[Source "ChessBase"]
[SourceQuality "1"]
[TimeControl "5400+30"]

{[%evp 13,97,22,22,23,22,26,23,8,11,0,43,41,45,22,29,22,9,25,31,39,25,0,10,0,67,65,65,63,55,62,63,67,94,85,86,65,93,77,260,383,272,406,416,395,377,471,470,471,452,467,460,437,361,229,789,722,580,160,113,118,295,20,21,21,32,21,21,31,24,8,88,31,59,61,15,0,0,0,0,0,0,0,0,0,0,0]} 1. e4 {[%emt 0:00:03]} c5 {[%emt 0:00:36]} 2. Nf3 {[%emt 0:00:04]} Nc6 {[%emt 0:00:08]} 3. d4 {[%emt 0:00:12]} cxd4 {[%emt 0:00:04]} 4. Nxd4 {[%emt 0:00:05]} Nf6 {[%emt 0:05:50]} 5. Nc3 {[%emt 0:00:18]} d6 {[%emt 0:00:04]} 6. Bg5 {[%emt 0:00:22]} e6 {[%emt 0:00:07]} 7. Bb5 {[%emt 0:00:18]} Bd7 {[%emt 0:00:17]} 8. Qd3 $1 {[%emt 0:00:11][%mdl 4] is more profitable than 8.Bxc6 at the moment. B62: Sicilian: Richter-Rauzer: 6...e6: Unusual White 7th moves.} Be7 {[%emt 0:07:29]} 9. O-O-O {[%emt 0:01:06]} O-O {[%emt 0:06:04]} 10. Bxc6 {[%emt 0:00:54] White has an edge.} (10. f4 {looks sharper.} Nxd4 11. Bxd7 h6 12. h4) 10... bxc6 {[%emt 0:04:39]} 11. Nb3 {[%emt 0:00:16][%cal Oe4e5]} e5 {[%emt 0:00:05]} 12. Bxf6 {[%emt 0:00:42]} gxf6 {[%emt 0:00:03]} 13. f4 {[%emt 0:00:22] [#]} Kh8 $146 {[%emt 0:00:49]} ({Predecessor:} 13... a5 14. f5 Kh8 15. Qe3 a4 16. Nd2 a3 17. b3 Bc8 18. Qh6 Rg8 19. Rhe1 d5 {0-1 (31) Tanenbaum,Z (2137)-Korchmar,V (2441) Chess.com INT 2020}) 14. f5 {[%emt 0:01:48]} Bc8 {[%emt 0:08:58]} 15. g4 {[%emt 0:21:10][%cal Bg2g4,Bg4g5,Bg5f6][%mdl 32]} a5 {[%emt 0:06:17]} 16. a4 {[%emt 0:05:06]} Rg8 {[%emt 0:11:20]} 17. Qf3 {[%emt 0:04:03]} Rb8 {[%emt 0:00:14]} 18. h4 {[%emt 0:01:25]} Qb6 {[%emt 0:00:08]} (18... Ba6 $11) 19. g5 $1 $14 {[%emt 0:11:56]} Ba6 {[%emt 0:00:06]} ({Of course not} 19... fxg5 20. hxg5 Rxg5 21. Kb1 (21. Qh3 Rg7 $11)) 20. gxf6 {[%emt 0:06:16]} Bf8 {[%emt 0:00:53]} 21. Rh2 $1 {[%emt 0:04:42]} Bc4 {[%emt 0:08:17]} 22. Rg2 {[%emt 0:03:54] Against d5} Rxg2 {[%emt 0:07:02]} 23. Qxg2 {[%emt 0:00:17]} Bh6+ {[%emt 0:00:07]} 24. Kb1 {[%emt 0:00:34]} Rg8 {[%emt 0:00:16]} 25. Qf3 {[%emt 0:04:08] White is more active.} Rg1 $2 {[%emt 0:00:11]} (25... Bxb3 $16 26. cxb3 Be3) 26. Rxg1 $18 {[%emt 0:11:27]} Qxg1+ {[%emt 0:00:06]} 27. Qd1 {[%emt 0:02:30]} Qxd1+ {[%emt 0:01:55]} 28. Nxd1 {[%emt 0:00:06]} Bxb3 {[%emt 0:00:29]} 29. cxb3 {[%emt 0:00:05][%cal Ob3b4][%mdl 4096] Endgame b4! is the strong threat. KB-KN} Bd2 {[%emt 0:00:05] Prevents b4.} 30. Kc2 {[%emt 0:01:21]} Be1 {[%emt 0:00:14]} 31. h5 {[%emt 0:00:36]} Kg8 {[%emt 0:00:14]} 32. Ne3 {[%emt 0:01:02] And now Kd3 would win.} Kf8 {[%emt 0:00:15]} 33. Kd3 $1 {[%emt 0:01:46] Black must now prevent Nc2.} Bb4 $2 {[%emt 0:12:17]} (33... Ke8 34. Ng4 Kf8) 34. Nc2 $1 {[%emt 0:01:47] White threatens Nxb4 and mate.} Bc5 {[%emt 0:00:06]} 35. Kc4 $2 {[%emt 0:00:44]} (35. b4 $1 $18 {[%cal Rb4c5] and the rest is easy.} axb4 36. a5) 35... Ke8 $16 {[%emt 0:02:25]} 36. Ne1 {[%emt 0:07:41] Hoping for Nd3.} Bd4 $2 {[%emt 0:05:15] [#]} (36... Bb4 $16 37. Nf3 Kf8) 37. Nd3 $2 {[%emt 0:00:37]} (37. b4 $1 $18 {[%cal Rb4a5]}) 37... Kd7 $11 {[%emt 0:00:25]} 38. b4 {[%emt 0:02:45]} axb4 {[%emt 0:00:13]} 39. b3 {[%emt 0:00:39]} Bc3 {[%emt 0:01:37]} 40. Nf2 {[%emt 0:00:57]} Bd2 $1 {[%emt 0:04:30]} 41. Ng4 {[%emt 0:00:49]} (41. Kd3 $5 {[%cal Rd3d2]} Bg5 42. Kc4 $16) 41... Kc7 {[%emt 0:06:48] [#]} 42. Nh2 $1 {[%emt 0:01:04]} Kb6 {[%emt 0:00:06]} 43. Nf3 {[%emt 0:00:49]} Bf4 {[%emt 0:00:03]} 44. Ne1 {[%emt 0:03:07][%cal Oe1c2] The position is equal.} Ka5 {[%emt 0:02:02]} 45. Nd3 {[%emt 0:00:06]} Bd2 {[%emt 0:00:04]} 46. Nf2 {[%emt 0:01:15]} Bg5 {[%emt 0:00:37]} 47. Nd3 {[%emt 0:00:32]} Bd2 {[%emt 0:00:06]} 48. Nf2 {[%emt 0:00:49]} Bg5 {[%emt 0:00:06]} 49. Nd3 {[%emt 0:00:21] White really could win this.   Weighted Error Value: White=0.30/Black=0.17 (very precise)} 1/2-1/2

[Event "Fall GM-A Norm Invitational 2022"]
[Site "Charlotte"]
[Date "2022.11.20"]
[Round "6"]
[White "Kaliksteyn, Alexander"]
[Black "Fus, Jakub"]
[Result "1/2-1/2"]
[ECO "A46"]
[WhiteElo "2389"]
[BlackElo "2427"]
[Annotator "TA"]
[PlyCount "34"]
[EventDate "2022.11.18"]
[EventType "tourn"]
[EventCountry "USA"]
[SourceTitle "playchess.com"]
[Source "ChessBase"]
[SourceQuality "1"]
[TimeControl "5400+30"]

{[%evp 9,34,10,0,9,10,3,17,6,37,15,22,18,38,17,49,44,53,47,52,56,46,48,56,52,66,64,53]} 1. d4 {[%emt 0:00:02]} Nf6 {[%emt 0:00:15]} 2. Nf3 {[%emt 0:00:06]} e6 {[%emt 0:00:08]} 3. Bf4 {[%emt 0:00:30]} c5 {[%emt 0:00:10]} 4. e3 {[%emt 0:00:22]} Qb6 {[%emt 0:00:08]} 5. Nc3 {[%emt 0:17:10]} a6 {[%emt 0:00:20]} 6. a3 {[%emt 0:05:02] A46: 1 d4 Nf6 2 Nf3 e6: Torre, London and Colle Systems.} cxd4 {[%emt 0:01:36]} 7. exd4 {[%emt 0:00:44]} d5 {[%emt 0:01:41]} 8. Bd3 {[%emt 0:00:53] The position is equal.} Nc6 {[%emt 0:03:01][%cal Bb8c6,Bc6a5,Ba5c4][%mdl 32]} 9. Rb1 {[%emt 0:04:32]} Bd7 {[%emt 0:04:02]} 10. Ne2 {[%emt 0:00:24] [#]} Be7 $146 {[%emt 0:15:35]} ({Predecessor:} 10... Nh5 11. Be3 Qc7 12. c3 Bd6 13. Ng3 Nf6 14. Qe2 h6 15. Nd2 O-O 16. O-O e5 17. dxe5 Nxe5 {½-½ (55) Dao,M (1956)-Stoyanov,T (2340) Porto Carras 2018}) 11. O-O {[%emt 0:01:07]} Rc8 {[%emt 0:02:59]} 12. c3 {[%emt 0:00:58] White is slightly better.} O-O {[%emt 0:03:50]} 13. Re1 {[%emt 0:09:38]} Na5 {[%emt 0:06:55]} 14. Ne5 {[%emt 0:07:20]} Bb5 {[%emt 0:02:10]} 15. Bc2 {[%emt 0:01:04]} Nh5 {[%emt 0:07:41] [#] Strongly threatening ...Bxe2.} 16. Bc1 {[%emt 0:03:13]} Nc4 {[%emt 0:04:18]} 17. Nf4 {[%emt 0:01:27]} ({Much worse is} 17. Qd3 g6 18. Qd1 Nxe5 19. dxe5 Bc5 $11) 17... Nxf4 $1 {[%emt 0:07:28] Weighted Error Value: White=0.06 (flawless) /Black=0.10 (very precise)} 1/2-1/2